bitfinex/quotes_BTCUSD_20260126
["timestamp","ask_amount","ask_price","bid_price","bid_amount"]
[1769421339590,0.02435457,87643.0,87632.0,0.17442142]
[1769421340463,0.02435457,87641.0,87632.0,0.00010142]
[1769421342589,0.02435457,87648.0,87632.0,0.00010142]
[1769421342773,0.02435457,87647.0,87632.0,0.00010142]
[1769421342967,0.63675278,87647.0,87632.0,0.00010142]
[1769421343168,0.02435457,87645.0,87632.0,0.00010142]
[1769421346376,0.02435457,87643.0,87632.0,0.00010142]
[1769421346933,0.04717114,87643.0,87632.0,0.00010142]
[1769421348922,0.02281657,87643.0,87632.0,0.00010142]
[1769421349126,0.02435457,87642.0,87632.0,0.00010142]
[1769421349326,0.02281657,87641.0,87632.0,0.00010142]
[1769421351453,0.02381657,87641.0,87632.0,0.00010142]
[1769421351805,0.04717114,87641.0,87632.0,0.00010142]
[1769421352256,0.02435457,87640.0,87632.0,0.00010142]
[1769421352559,0.02281657,87639.0,87632.0,0.00010142]
[1769421355412,0.02435457,87640.0,87632.0,0.00010142]
[1769421355599,0.02281657,87641.0,87632.0,0.00010142]
[1769421355825,0.02435457,87646.0,87632.0,0.00010142]
[1769421355962,0.13228,87645.0,87632.0,0.00010142]
[1769421356173,0.06,87642.0,87632.0,0.00010142]
[1769421356391,0.02281657,87641.0,87632.0,0.01349504]
[1769421356629,0.02281657,87641.0,87633.0,0.01339317]
[1769421356983,0.02281657,87641.0,87632.0,0.00010142]
[1769421360058,0.06,87642.0,87632.0,0.00010142]
[1769421360240,0.001,87641.0,87632.0,0.02292413]
[1769421360583,0.1867681,87657.0,87632.0,0.02292413]
[1769421360584,0.001,87655.0,87635.0,0.64916647]
[1769421360755,0.02435457,87654.0,87635.0,0.64916647]
[1769421360954,0.02535457,87653.0,87635.0,0.64916647]
[1769421361180,0.02535457,87653.0,87635.0,0.02364343]
[1769421361412,0.02535457,87653.0,87636.0,0.64916647]
[1769421361967,0.02535457,87653.0,87637.0,0.02282141]
[1769421361968,0.02435457,87653.0,87637.0,0.02282141]
[1769421362277,0.11444082,87652.0,87636.0,0.02364343]
[1769421362498,0.11344082,87651.0,87637.0,0.02282141]
[1769421363278,0.001,87650.0,87637.0,0.02282141]
[1769421363479,0.11344082,87649.0,87636.0,0.02364343]
[1769421363703,0.02282141,87648.0,87636.0,0.02364343]
[1769421364019,0.02282141,87648.0,87637.0,0.01565151]
[1769421364020,0.11344082,87647.0,87637.0,0.01565151]
[1769421364388,0.11344082,87646.0,87637.0,0.01565151]
[1769421364718,0.11344082,87645.0,87637.0,0.01565151]
[1769421364954,0.11344082,87644.0,87637.0,0.01565151]
[1769421365469,0.11344082,87643.0,87637.0,0.01565151]
[1769421365637,0.02282141,87652.0,87637.0,0.01565151]
[1769421365843,0.11364358,87651.0,87637.0,0.01565151]
[1769421366192,0.06,87644.0,87636.0,0.02364343]
[1769421366361,0.13646499,87643.0,87636.0,0.02364343]
[1769421366565,0.02282141,87643.0,87634.0,0.64916647]
[1769421367402,0.11367839,87642.0,87632.0,0.00010142]
[1769421367569,0.02282141,87643.0,87632.0,0.00010142]
[1769421367754,0.11367801,87642.0,87632.0,0.00010142]
[1769421367949,0.07861538,87643.0,87632.0,0.00010142]
[1769421368158,0.11367801,87642.0,87632.0,0.00010142]
[1769421368476,0.07861538,87643.0,87632.0,0.00010142]
[1769421368640,0.11369158,87642.0,87632.0,0.00010142]
[1769421368845,0.11369158,87642.0,87620.0,0.64445912]
[1769421368846,0.02352119,87640.0,87620.0,0.64445912]
[1769421369050,0.69433807,87638.0,87626.0,0.17536]
[1769421369251,0.02352119,87637.0,87627.0,0.01571692]
[1769421369451,0.02352119,87635.0,87625.0,0.00031003]
[1769421369709,0.71785926,87633.0,87625.0,0.00031003]
[1769421372178,0.69433807,87633.0,87625.0,0.00031003]
[1769421372488,0.69433807,87629.0,87625.0,0.00031003]
[1769421372841,0.06846531,87636.0,87625.0,0.00031003]
[1769421372842,0.02352119,87628.0,87625.0,0.00031003]
[1769421372989,0.02352119,87628.0,87615.0,0.17536]
[1769421373195,0.02366155,87628.0,87615.0,0.17536]
[1769421373406,0.02366155,87628.0,87615.0,0.17467003]
[1769421376875,0.00014036,87628.0,87615.0,0.17467003]
[1769421377209,0.06846232,87640.0,87615.0,0.17467003]
[1769421377210,0.09069789,87649.0,87630.0,0.02405678]
[1769421377409,0.13647429,87648.0,87639.0,0.25036219]
[1769421377634,0.11265288,87647.0,87639.0,0.25036219]
[1769421378050,0.65024626,87650.0,87635.0,0.02405678]
[1769421378222,0.02282141,87649.0,87635.0,0.02405678]
[1769421378610,0.67306767,87649.0,87631.0,0.01230184]
[1769421378852,0.67448686,87649.0,87631.0,0.01230184]
[1769421380002,0.09069789,87654.0,87639.0,0.27380219]
[1769421380192,0.00013362,87654.0,87639.0,0.27380219]
[1769421380581,0.00013362,87654.0,87639.0,0.2982315]
[1769421380781,0.09268655,87661.0,87630.0,0.0684694]
[1769421380782,0.09069789,87667.0,87649.0,0.64763487]
[1769421381099,0.0002137,87670.0,87657.0,0.27380219]
[1769421381336,0.0002137,87670.0,87656.0,0.63622573]
[1769421382088,0.0002137,87670.0,87660.0,0.27380219]
[1769421382693,0.0002137,87670.0,87656.0,0.63622573]
[1769421383587,6.257e-05,87670.0,87656.0,0.63622573]
[1769421383829,6.257e-05,87670.0,87641.0,0.01141018]
[1769421384033,0.23101243,87659.0,87642.0,0.24546931]
[1769421384394,0.23101243,87659.0,87643.0,0.63622573]
[1769421384671,0.25525303,87664.0,87645.0,0.63622573]
[1769421384871,0.25525303,87664.0,87641.0,0.00013362]
[1769421384872,0.23101243,87654.0,87641.0,0.00013362]
[1769421385053,0.25525303,87654.0,87641.0,0.00013362]
[1769421385257,0.23101243,87654.0,87641.0,0.00013362]
[1769421385808,0.0242406,87657.0,87641.0,0.00013362]
[1769421386211,0.0365948,87657.0,87641.0,0.00013362]
[1769421387373,0.06844353,87664.0,87641.0,0.00013362]
[1769421387374,0.23101243,87668.0,87649.0,0.63622573]
[1769421387591,0.23101243,87668.0,87651.0,0.66065504]
[1769421388513,0.25525303,87668.0,87651.0,0.66065504]
[1769421390366,0.06843336,87677.0,87647.0,0.0114094]
[1769421390367,0.27961717,87675.0,87654.0,0.02442931]
[1769421390566,0.11338326,87674.0,87656.0,0.02442931]
[1769421390741,0.11338326,87674.0,87656.0,0.19974931]
[1769421390742,0.11338326,87673.0,87656.0,0.19974931]
[1769421391836,0.11338326,87672.0,87656.0,0.19974931]
[1769421392007,0.11338326,87671.0,87656.0,0.19974931]
[1769421392253,0.11338326,87670.0,87656.0,0.19974931]
[1769421392561,0.11338326,87669.0,87656.0,0.19974931]
[1769421392713,0.11338326,87668.0,87656.0,0.19974931]
[1769421392921,0.27380219,87670.0,87656.0,0.19974931]
[1769421393128,0.11336317,87669.0,87656.0,0.19974931]
[1769421393330,0.11336317,87668.0,87656.0,0.19974931]
[1769421393527,0.27380219,87670.0,87656.0,0.19974931]
[1769421393711,0.11335452,87669.0,87656.0,0.19974931]
[1769421393908,0.11335452,87668.0,87656.0,0.19974931]
[1769421394224,0.27380219,87670.0,87656.0,0.19974931]
[1769421394397,0.11334729,87669.0,87656.0,0.19974931]
[1769421394599,0.11334729,87668.0,87656.0,0.19974931]
[1769421394901,0.27380219,87670.0,87656.0,0.19974931]
[1769421395101,0.1133472,87669.0,87656.0,0.19974931]
[1769421395323,0.1133472,87668.0,87656.0,0.19974931]
[1769421395522,0.27380219,87670.0,87656.0,0.19974931]
[1769421395718,0.11334199,87669.0,87656.0,0.19974931]
[1769421395940,0.27380219,87670.0,87656.0,0.19974931]
[1769421396139,0.11334199,87669.0,87656.0,0.19974931]
[1769421396334,0.27380219,87670.0,87656.0,0.19974931]
[1769421396534,0.11333584,87669.0,87656.0,0.19974931]
[1769421396722,0.27380219,87670.0,87656.0,0.19974931]
[1769421396935,0.11333584,87669.0,87656.0,0.19974931]
[1769421397147,0.27380219,87670.0,87656.0,0.19974931]
[1769421397320,0.26139041,87673.0,87656.0,0.19974931]
[1769421397518,0.11333175,87672.0,87661.0,0.68801689]
[1769421397732,0.53505399,87680.0,87660.0,0.27380219]
[1769421397733,0.53505399,87680.0,87662.0,0.71248499]
[1769421397932,0.1133345,87679.0,87662.0,0.71248499]
[1769421398183,0.1133345,87678.0,87662.0,0.71248499]
[1769421398364,0.1133345,87677.0,87662.0,0.71248499]
[1769421398541,0.1133345,87676.0,87662.0,0.71248499]
[1769421398714,0.1133345,87675.0,87662.0,0.68801689]
[1769421398912,0.00617228,87696.0,87677.0,0.0244681]
[1769421399169,0.00617228,87696.0,87682.0,0.68801689]
[1769421399170,0.01252676,87688.0,87682.0,0.68801689]
[1769421399420,0.0002137,87696.0,87686.0,0.0244681]
[1769421399670,0.00170669,87688.0,87686.0,0.0244681]
[1769421399836,5.334e-05,87688.0,87686.0,0.71248499]
[1769421400037,0.00052153,87688.0,87686.0,0.70248499]
[1769421400280,6.52e-05,87688.0,87686.0,0.70248499]
[1769421405084,0.27380219,87700.0,87686.0,0.70248499]
[1769421405284,0.01822676,87692.0,87686.0,0.70248499]
[1769421406192,0.63059649,87691.0,87665.0,0.0244681]
[1769421406449,0.02410199,87688.0,87672.0,0.01140615]
[1769421406608,0.02410199,87688.0,87671.0,0.01140628]
[1769421406609,0.63059649,87695.0,87675.0,0.01140575]
[1769421406814,0.01822676,87688.0,87676.0,0.71082814]
[1769421407031,0.01822676,87688.0,87676.0,0.68801689]
[1769421407238,0.0936714,87690.0,87676.0,0.68801689]
[1769421408284,0.62836171,87687.0,87674.0,0.17528]
[1769421408459,0.02410199,87686.0,87674.0,0.17528]
[1769421409617,0.02410199,87686.0,87664.0,0.01140719]
[1769421409618,0.62836171,87672.0,87663.0,0.0002323]
[1769421409820,0.01822676,87675.0,87663.0,0.0002323]
[1769421409821,0.62836171,87670.0,87663.0,0.0002323]
[1769421410059,0.6524637,87671.0,87663.0,0.0002323]
[1769421410855,0.02410199,87671.0,87663.0,0.00070049]
[1769421412254,0.62836171,87676.0,87663.0,0.00070049]
[1769421412255,0.6524637,87676.0,87663.0,0.00070049]
[1769421413074,0.6524637,87676.0,87663.0,0.01519777]
[1769421416817,0.02410199,87676.0,87663.0,0.01519777]
[1769421417030,0.62836171,87675.0,87663.0,0.00070049]
[1769421420344,0.62836171,87675.0,87663.0,0.0163237]
[1769421421108,0.01822676,87679.0,87663.0,0.0407918]
[1769421421377,0.01822676,87671.0,87663.0,0.0407918]
[1769421422162,0.0228136,87682.0,87663.0,0.0407918]
[1769421422359,0.01822676,87672.0,87663.0,0.0407918]
[1769421422558,0.0228136,87682.0,87663.0,0.02516859]
[1769421422772,0.01822676,87671.0,87663.0,0.02516859]
[1769421423418,0.01822676,87671.0,87663.0,0.03851034]
[1769421423631,0.0228136,87679.0,87663.0,0.03851034]
[1769421423926,0.01822676,87686.0,87666.0,0.0244681]
[1769421424118,0.0228136,87685.0,87667.0,0.01448182]
[1769421424409,0.04691559,87685.0,87667.0,0.01448182]
[1769421424634,0.01822676,87683.0,87667.0,0.01448182]
[1769421424904,0.01822676,87683.0,87672.0,0.02498614]
[1769421425267,0.01822676,87680.0,87672.0,0.64075032]
[1769421425473,0.01822676,87680.0,87673.0,0.02498614]
[1769421426926,0.01822676,87692.0,87673.0,0.02498614]
[1769421427124,0.01822676,87688.0,87672.0,0.02498614]
[1769421431077,0.01822676,87688.0,87673.0,0.02281204]
[1769421434255,0.01822676,87688.0,87673.0,0.04779818]
[1769421434946,0.01822676,87688.0,87664.0,0.06844289]
[1769421434947,0.02443248,87667.0,87647.0,0.09110823]
[1769421435122,0.02443248,87667.0,87637.0,0.13634519]
[1769421435123,0.67095404,87663.0,87641.0,0.01464361]
[1769421435334,0.67095404,87663.0,87643.0,0.64075032]
[1769421435335,0.01822676,87660.0,87643.0,0.64075032]
[1769421435535,0.01822676,87660.0,87644.0,0.64075032]
[1769421435725,0.6891808,87660.0,87644.0,0.64075032]
[1769421437235,0.6891808,87660.0,87638.0,0.01141057]
[1769421437236,0.02443248,87657.0,87637.0,0.02498614]
[1769421437439,0.02443248,87657.0,87631.0,0.01141148]
[1769421437440,0.00014041,87657.0,87640.0,0.27347703]
[1769421437647,0.00014041,87657.0,87642.0,0.64075032]
[1769421437810,0.00014041,87657.0,87644.0,0.68886524]
[1769421438017,0.00014041,87657.0,87645.0,0.01351191]
[1769421439987,0.69622961,87656.0,87645.0,0.01351191]
[1769421440117,0.69622961,87656.0,87640.0,0.27347703]
[1769421440321,0.10128117,87655.0,87638.0,0.68886524]
[1769421440527,0.69622961,87656.0,87638.0,0.68886524]
[1769421442097,0.72096745,87656.0,87638.0,0.68886524]
[1769421442298,0.69622961,87656.0,87638.0,0.68886524]
[1769421442500,0.02473784,87655.0,87638.0,0.68886524]
[1769421443202,0.02473784,87655.0,87639.0,0.01348963]
[1769421443363,0.02473784,87655.0,87638.0,0.68886524]
[1769421444215,0.02473784,87655.0,87639.0,0.0247165]
[1769421444386,0.00014041,87657.0,87641.0,0.0247165]
[1769421444587,0.00014041,87657.0,87643.0,0.0247165]
[1769421444813,0.00014041,87657.0,87645.0,0.0247165]
[1769421445009,0.00014041,87657.0,87645.0,0.68886524]
[1769421445310,0.00014041,87657.0,87646.0,0.6776373]
[1769421445471,0.00014041,87657.0,87646.0,0.66414874]
[1769421448941,0.00014041,87657.0,87647.0,0.01348763]
[1769421449314,0.00014041,87657.0,87646.0,0.66414874]
[1769421449690,0.00014041,87657.0,87645.0,0.0247165]
[1769421452764,0.00014041,87657.0,87646.0,0.01234649]
[1769421453855,0.00014041,87657.0,87648.0,0.057046]
[1769421454021,0.00014041,87657.0,87649.0,0.01348663]
[1769421454236,0.01822676,87660.0,87649.0,0.01348663]
[1769421454454,0.01822676,87660.0,87649.0,0.03820313]
[1769421455460,0.68390694,87673.0,87651.0,0.02295449]
[1769421455663,0.68390694,87673.0,87653.0,0.02295449]
[1769421455958,0.01822676,87669.0,87660.0,0.27347703]
[1769421456127,0.01822676,87669.0,87656.0,0.02295449]
[1769421456327,0.01822676,87669.0,87656.0,0.03644005]
[1769421458109,0.02281204,87668.0,87656.0,0.03644005]
[1769421458479,0.01822676,87669.0,87656.0,0.03644005]
[1769421461671,0.70671898,87668.0,87656.0,0.02295449]
[1769421461808,0.68390694,87668.0,87656.0,0.02295449]
[1769421462007,0.02281204,87667.0,87656.0,0.02295449]
[1769421462407,0.02281204,87667.0,87657.0,0.01348539]
[1769421462816,0.02281204,87667.0,87656.0,0.02295449]
[1769421465487,0.68390694,87661.0,87625.0,0.1474132]
[1769421465635,0.01822676,87655.0,87639.0,0.0684623]
[1769421465844,0.01822676,87655.0,87641.0,0.01141018]
[1769421466539,0.01822676,87655.0,87640.0,0.2966955]
[1769421466744,0.01822676,87655.0,87642.0,0.01141005]
[1769421466978,0.01822676,87655.0,87641.0,0.03436467]
[1769421467580,0.01822676,87655.0,87641.0,0.09141559]
[1769421467777,0.01822676,87655.0,87641.0,0.02295449]
[1769421467966,0.01822676,87655.0,87642.0,0.01141005]
[1769421468367,0.01822676,87655.0,87643.0,0.01140992]
[1769421468819,0.01822676,87655.0,87642.0,0.01141005]
[1769421469231,0.02324765,87657.0,87642.0,0.01141005]
[1769421469401,0.68390694,87667.0,87647.0,0.02295449]
[1769421469585,0.01822676,87669.0,87650.0,0.27374101]
[1769421469586,0.79772827,87666.0,87650.0,0.27374101]
[1769421469783,0.70715459,87666.0,87651.0,0.01240141]
[1769421470283,0.01822676,87669.0,87652.0,0.6890708]
[1769421470488,0.02281204,87668.0,87652.0,0.6662533]
[1769421471515,0.70671898,87668.0,87652.0,0.6662533]
[1769421471716,0.68390694,87668.0,87653.0,0.01472394]
[1769421472184,0.02281204,87667.0,87653.0,0.01472394]
[1769421473328,0.68390694,87668.0,87653.0,0.01472394]
[1769421473546,0.02281204,87667.0,87653.0,0.01472394]
[1769421477601,0.68390694,87668.0,87653.0,0.01472394]
[1769421479711,0.68390694,87676.0,87654.0,0.64329881]
[1769421479870,0.11384412,87675.0,87660.0,0.27374101]
[1769421480078,0.11384412,87675.0,87661.0,0.68097589]
[1769421480079,0.13207088,87674.0,87661.0,0.68097589]
[1769421480261,0.11384412,87673.0,87662.0,0.17532]
[1769421480858,0.11384412,87673.0,87663.0,0.01358152]
[1769421481261,0.01822676,87674.0,87662.0,0.17532]
[1769421481510,0.01822676,87674.0,87663.0,0.01358195]
[1769421481856,0.09079192,87674.0,87662.0,0.17532]
[1769421482033,0.68390694,87669.0,87651.0,0.01244292]
[1769421482242,0.02324765,87666.0,87659.0,0.17532]
[1769421482444,0.02324765,87664.0,87656.0,0.17532]
[1769421482644,0.70715459,87664.0,87656.0,0.17546041]
[1769421484581,0.68390694,87664.0,87656.0,0.00014041]
[1769421484789,0.27374101,87670.0,87656.0,0.00014041]
[1769421484790,0.70715459,87663.0,87656.0,0.00014041]
[1769421486472,0.54476833,87663.0,87656.0,0.00014041]
[1769421488835,0.02411713,87667.0,87656.0,0.00014041]
[1769421490574,0.02281204,87669.0,87656.0,0.00014041]
[1769421493628,0.02281204,87669.0,87656.0,0.01269441]
[1769421494416,0.02281204,87669.0,87657.0,0.17528]
[1769421494628,0.02281204,87669.0,87658.0,0.01255371]
[1769421496086,0.69531163,87680.0,87669.0,0.01]
[1769421496218,0.01822676,87674.0,87664.0,0.02471444]
[1769421496819,0.01822676,87674.0,87664.0,0.04752882]
[1769421502880,9.46e-05,87679.0,87664.0,0.03422157]
[1769421503083,0.01822676,87675.0,87666.0,0.02471444]
[1769421503576,0.01822676,87675.0,87667.0,0.0228136]
[1769421510589,0.69540623,87679.0,87667.0,0.0228136]
[1769421510805,0.01822676,87689.0,87671.0,0.02471444]
[1769421510980,0.01822676,87689.0,87669.0,0.28514755]
[1769421510981,0.01822676,87689.0,87672.0,0.17528]
[1769421510986,0.11377807,87688.0,87672.0,0.17528]
[1769421511135,0.11377807,87687.0,87676.0,0.02471444]
[1769421511339,0.02467452,87696.0,87677.0,0.02471444]
[1769421511546,0.01739906,87691.0,87677.0,0.02471444]
[1769421511744,0.1137601,87690.0,87677.0,0.02471444]
[1769421512182,0.1137601,87690.0,87677.0,0.02387977]
[1769421514717,0.63229108,87695.0,87677.0,0.02387977]
[1769421514879,0.01822676,87690.0,87677.0,0.02387977]
[1769421515682,0.01822676,87694.0,87677.0,0.02387977]
[1769421516012,0.11369602,87693.0,87677.0,0.02387977]
[1769421516199,0.01822676,87694.0,87677.0,0.02387977]
[1769421516385,0.11368104,87693.0,87677.0,0.02387977]
[1769421516581,0.65051784,87694.0,87677.0,0.02387977]
[1769421516789,0.1136781,87693.0,87677.0,0.02387977]
[1769421516987,0.65051784,87694.0,87677.0,0.02387977]
[1769421517192,0.11367594,87693.0,87677.0,0.02387977]
[1769421517396,0.65051784,87694.0,87677.0,0.02387977]
[1769421517595,0.63229108,87692.0,87677.0,0.02387977]
[1769421521044,0.41704314,87692.0,87677.0,0.02387977]
[1769421523379,0.41704314,87692.0,87678.0,0.02281072]
[1769421524016,0.01822676,87694.0,87678.0,0.02281072]
[1769421524195,0.04142721,87694.0,87678.0,0.02281072]
[1769421524796,0.04142721,87694.0,87679.0,0.02430948]
[1769421525067,0.02320045,87693.0,87678.0,0.0226716]
[1769421525247,0.02320045,87693.0,87676.0,0.02267213]
[1769421532337,0.11369165,87692.0,87676.0,0.02267213]
[1769421532542,0.02320045,87692.0,87676.0,0.02267213]
[1769421535084,0.01822676,87694.0,87676.0,0.02267213]
[1769421535085,0.29672736,87690.0,87676.0,0.02267213]
[1769421535903,0.29672736,87690.0,87677.0,0.02253492]
[1769421536131,0.29672736,87690.0,87674.0,0.02253494]
[1769421536820,0.27352691,87690.0,87674.0,0.02253494]
[1769421537020,0.02320045,87689.0,87673.0,0.04564]
[1769421542353,0.02320045,87689.0,87674.0,0.17528]
[1769421544561,0.46896476,87689.0,87674.0,0.17528]
[1769421544761,0.02251744,87688.0,87674.0,0.17528]
[1769421545218,0.34195038,87690.0,87674.0,0.17528]
[1769421545358,0.02251744,87686.0,87674.0,0.17528]
[1769421546779,0.02251744,87699.0,87686.0,0.01]
[1769421546979,0.68464706,87696.0,87686.0,0.01]
[1769421547246,0.02251744,87694.0,87686.0,0.01]
[1769421547429,0.02251744,87692.0,87686.0,0.01]
[1769421548046,0.02298592,87692.0,87686.0,0.01]
[1769421548426,0.02298592,87692.0,87675.0,0.63511557]
[1769421550285,0.02298592,87692.0,87675.0,0.68075557]
[1769421551367,0.02251744,87690.0,87670.0,0.27352691]
[1769421551585,0.02251744,87686.0,87671.0,0.24128657]
[1769421551789,0.02251744,87686.0,87671.0,0.22092]
[1769421553587,0.02251744,87686.0,87671.0,0.22081102]
[1769421554382,0.02251744,87685.0,87672.0,0.17528]
[1769421554586,0.02251744,87685.0,87673.0,0.02281204]
[1769421558486,0.02251744,87685.0,87672.0,0.17528]
[1769421560002,0.68464706,87684.0,87672.0,0.17528]
[1769421560143,0.02368481,87683.0,87672.0,0.17528]
[1769421561228,0.02368481,87683.0,87673.0,0.02227881]
[1769421561586,0.56551714,87689.0,87673.0,0.02227881]
[1769421561922,0.58920195,87689.0,87673.0,0.02227881]
[1769421563094,0.58920195,87689.0,87672.0,0.17528]
[1769421566244,0.58920195,87689.0,87673.0,0.02281204]
[1769421567277,0.58920195,87689.0,87672.0,0.17528]
[1769421568244,0.58920195,87689.0,87673.0,0.02281204]
[1769421568662,0.35916042,87689.0,87673.0,0.02281204]
[1769421570573,0.35916042,87689.0,87672.0,0.17528]
[1769421571134,0.35916042,87689.0,87673.0,0.02281204]
[1769421571727,0.35916042,87689.0,87672.0,0.17528]
[1769421574986,0.35916042,87689.0,87673.0,0.02281204]
[1769421575298,0.31724885,87689.0,87674.0,0.02456057]
[1769421575520,0.31724885,87689.0,87675.0,0.02281151]
[1769421575700,0.00046848,87692.0,87675.0,0.02281151]
[1769421576881,0.00046848,87692.0,87672.0,0.17528]
[1769421576882,0.00046848,87692.0,87679.0,0.02456057]
[1769421577288,0.00046848,87692.0,87679.0,0.04737104]
[1769421577564,0.01822676,87691.0,87679.0,0.04737104]
[1769421578825,0.11375942,87690.0,87679.0,0.04737104]
[1769421579061,0.11375942,87689.0,87679.0,0.04737104]
[1769421579279,0.01822676,87691.0,87679.0,0.04737104]
[1769421579509,0.11376687,87690.0,87679.0,0.04737104]
[1769421583608,0.11376687,87690.0,87680.0,0.02456057]
[1769421583811,0.11376687,87689.0,87681.0,0.04704669]
[1769421584020,0.00046848,87692.0,87681.0,0.04704669]
[1769421584021,0.11376687,87688.0,87681.0,0.04704669]
[1769421584235,0.00046848,87692.0,87681.0,0.02456057]
[1769421584434,0.11382467,87691.0,87681.0,0.02456057]
[1769421584609,0.11382467,87690.0,87681.0,0.02456057]
[1769421584937,0.00046848,87692.0,87681.0,0.02448561]
[1769421584938,0.11382467,87689.0,87681.0,0.02448561]
[1769421585094,0.11382467,87688.0,87681.0,0.02448561]
[1769421585303,0.00046848,87692.0,87681.0,0.02448561]
[1769421585507,0.11382682,87691.0,87681.0,0.02448561]
[1769421585711,0.11382682,87690.0,87681.0,0.02448561]
[1769421585955,0.11382682,87689.0,87681.0,0.02448561]
[1769421586157,0.11382682,87688.0,87681.0,0.02448561]
[1769421586377,0.00046848,87692.0,87681.0,0.02448561]
[1769421586587,0.11382681,87691.0,87681.0,0.02448561]
[1769421586792,0.11382681,87690.0,87681.0,0.01966885]
[1769421587002,0.11382681,87689.0,87676.0,0.02456057]
[1769421587202,0.11382681,87688.0,87676.0,0.02456057]
[1769421587406,0.00046848,87692.0,87676.0,0.72358472]
[1769421587659,0.11382625,87691.0,87678.0,0.69902415]
[1769421587835,0.11382625,87690.0,87679.0,0.02456057]
[1769421588046,0.11382625,87689.0,87679.0,0.02456057]
[1769421588253,0.11382625,87688.0,87679.0,0.02456057]
[1769421588457,0.00046848,87692.0,87673.0,0.02456057]
[1769421588686,0.11382473,87691.0,87674.0,0.02281178]
[1769421588905,0.11382473,87690.0,87674.0,0.02281178]
[1769421589232,0.11382473,87689.0,87674.0,0.02281178]
[1769421589457,0.11382473,87688.0,87673.0,0.04737261]
[1769421589661,0.00046848,87692.0,87674.0,0.02456057]
[1769421589885,0.11382524,87691.0,87674.0,0.02456057]
[1769421590182,0.08682239,87696.0,87674.0,0.02456057]
[1769421590183,0.01822676,87693.0,87674.0,0.02456057]
[1769421590362,0.04147789,87693.0,87674.0,0.02470777]
[1769421590900,0.04147789,87693.0,87674.0,0.04751955]
[1769421593072,0.04084434,87693.0,87674.0,0.04751955]
[1769421593295,0.04052766,87693.0,87674.0,0.04751955]
[1769421596212,0.04052766,87693.0,87674.0,0.7465437]
[1769421596417,0.04052766,87693.0,87674.0,0.72373192]
[1769421597557,0.04052766,87693.0,87674.0,0.69917135]
[1769421597872,0.04052766,87693.0,87676.0,0.02456057]
[1769421598258,0.04052766,87693.0,87676.0,0.72358472]
[1769421600816,0.02325113,87693.0,87676.0,0.72358472]
[1769421601616,0.02261751,87693.0,87676.0,0.72358472]
[1769421602265,0.02261751,87693.0,87674.0,0.0001472]
[1769421602266,0.27352187,87690.0,87674.0,0.0001472]
[1769421602419,0.02311233,87689.0,87675.0,0.17528]
[1769421602809,0.02288429,87689.0,87675.0,0.17528]
[1769421603237,0.02288429,87689.0,87676.0,0.02281125]
[1769421603846,0.0001388,87693.0,87676.0,0.02281125]
[1769421608538,0.02311233,87694.0,87676.0,0.02281125]
[1769421608693,0.02322432,87694.0,87676.0,0.02281125]
[1769421608902,0.34414715,87694.0,87676.0,0.02281125]
[1769421610497,0.18523462,87694.0,87677.0,0.02396767]
[1769421610635,0.18523462,87694.0,87678.0,0.02281073]
[1769421611240,0.18523462,87694.0,87679.0,0.02281047]
[1769421611438,0.18523462,87694.0,87680.0,0.02281021]
[1769421611439,0.16115231,87694.0,87680.0,0.02281021]
[1769421614384,0.16115231,87694.0,87680.0,0.04677788]
[1769421614598,0.16115231,87694.0,87680.0,0.02396767]
[1769421615002,0.16051869,87694.0,87680.0,0.02396767]
[1769421615274,0.16051869,87694.0,87677.0,0.02281099]
[1769421615275,0.01822676,87695.0,87679.0,0.02396767]
[1769421615488,0.01822676,87695.0,87677.0,0.02281099]
[1769421615489,0.01832807,87695.0,87682.0,0.65724345]
[1769421615696,0.01832807,87695.0,87683.0,0.02396767]
[1769421617937,0.00010131,87695.0,87683.0,0.68121112]
[1769421618974,0.00010131,87695.0,87685.0,0.66280773]
[1769421619150,0.00010131,87695.0,87687.0,0.02305434]
[1769421624330,0.00010131,87695.0,87689.0,0.02305434]
[1769421624555,1.31e-06,87695.0,87689.0,0.02305434]
[1769421625489,1.31e-06,87695.0,87684.0,0.02305434]
[1769421627541,0.6735701,87703.0,87684.0,0.02305434]
[1769421627804,0.67361685,87703.0,87684.0,0.02305434]
[1769421629868,0.67361685,87703.0,87684.0,0.68586207]
[1769421630068,0.67361685,87703.0,87685.0,0.02280891]
[1769421630429,0.67361685,87703.0,87686.0,0.68586207]
[1769421630641,0.67361685,87703.0,87687.0,0.02280839]
[1769421631551,4.675e-05,87703.0,87688.0,0.68586207]
[1769421631759,4.675e-05,87703.0,87689.0,0.02280787]
[1769421633887,4.675e-05,87703.0,87688.0,0.68586207]
[1769421634959,4.675e-05,87703.0,87688.0,0.02305434]
[1769421635163,0.64553961,87702.0,87683.0,0.02302701]
[1769421635365,0.66920597,87702.0,87683.0,0.02302701]
[1769421636430,0.02366636,87701.0,87683.0,0.02302701]
[1769421636644,0.03471605,87700.0,87683.0,0.02302701]
[1769421636886,0.02366636,87700.0,87683.0,0.02302701]
[1769421637037,0.66920597,87700.0,87683.0,0.02302701]
[1769421637453,0.66920597,87700.0,87684.0,0.17524]
[1769421638574,0.02366636,87700.0,87685.0,0.66119229]
[1769421639013,0.02366636,87700.0,87686.0,0.02280865]
[1769421639216,0.02366636,87700.0,87685.0,0.66119229]
[1769421642445,0.02366636,87700.0,87686.0,0.02280865]
[1769421642828,4.675e-05,87703.0,87687.0,0.66119229]
[1769421643037,4.675e-05,87703.0,87691.0,0.6842193]
[1769421643259,4.675e-05,87703.0,87692.0,0.01667099]
[1769421643883,4.675e-05,87703.0,87692.0,0.67786328]
[1769421644088,4.675e-05,87703.0,87692.0,0.66119229]
[1769421644291,4.675e-05,87703.0,87692.0,0.6842193]
[1769421645220,4.675e-05,87703.0,87693.0,0.68399912]
[1769421645504,0.0001472,87705.0,87698.0,0.02302701]
[1769421645708,0.0005472,87714.0,87699.0,0.66119229]
[1769421645954,0.0005472,87714.0,87701.0,0.66119229]
[1769421646139,0.0005472,87714.0,87703.0,0.65250757]
[1769421646425,0.0005472,87714.0,87703.0,0.64482239]
[1769421646625,0.0005472,87714.0,87703.0,0.61007803]
[1769421646784,0.0005472,87714.0,87703.0,0.56663948]
[1769421646985,0.0005472,87714.0,87703.0,0.51450134]
[1769421647189,0.0005472,87714.0,87704.0,0.0246263]
[1769421647378,0.0005472,87714.0,87703.0,0.4762191]
[1769421649042,5.66e-05,87714.0,87703.0,0.49924611]
[1769421649246,0.0227162,87722.0,87703.0,0.49924611]
[1769421649616,0.01139964,87722.0,87698.0,0.17524]
[1769421649823,0.01140016,87718.0,87698.0,0.17524]
[1769421650155,0.01140042,87716.0,87698.0,0.17524]
[1769421650346,0.02366636,87715.0,87698.0,0.17524]
[1769421652072,0.02366636,87715.0,87696.0,0.6842193]
[1769421652293,0.02366636,87715.0,87699.0,0.17524]
[1769421660829,0.29162136,87710.0,87692.0,0.0001472]
[1769421661031,0.22804926,87701.0,87667.0,0.02302701]
[1769421661260,0.01822676,87710.0,87667.0,0.02302701]
[1769421661261,0.02366636,87686.0,87674.0,0.00061568]
[1769421661481,0.02366636,87685.0,87674.0,0.00061568]